fUSD/lending_fUSD_20240224
["ID","MTS","AMOUNT","RATE_DAILY","PERIOD"]
[315028845,1708735840289,-750.0,0.000274,2]
[315028846,1708735840299,-219.66,0.00027421,2]
[315028847,1708735840308,-177.74,0.00027493,2]
[315028848,1708735840318,-500.0,0.00027534,2]
[315028849,1708735840328,-500.0,0.00027534,2]
[315028850,1708735840338,-500.0,0.00027534,2]
[315028851,1708735840347,-308.03,0.00027534,2]
[315028852,1708735840357,-329.54,0.00027534,2]
[315028853,1708735840367,-500.0,0.00027534,2]
[315028854,1708735840377,-500.0,0.00027534,2]
[315028855,1708735840386,-500.0,0.00027534,2]
[315028856,1708735840395,-500.0,0.00027534,2]
[315028857,1708735840405,-500.0,0.00027534,2]
[315028858,1708735840414,-500.0,0.00027534,2]
[315028859,1708735840424,-500.0,0.00027534,2]
[315028860,1708735840433,-500.0,0.00027534,2]
[315028861,1708735840442,-500.0,0.00027534,2]
[315028862,1708735840452,-500.0,0.00027534,2]
[315028863,1708735840461,-500.0,0.00027534,2]
[315028864,1708735840471,-500.0,0.00027534,2]
[315028865,1708735840480,-500.0,0.00027534,2]
[315028866,1708735840492,-500.0,0.00027534,2]
[315028867,1708735840501,-308.38811446,0.00027534,2]
[315028868,1708735840511,-538.52,0.00027534,2]
[315028869,1708735840521,-500.0,0.00027534,2]
[315028870,1708735840530,-500.0,0.00027534,2]
[315028871,1708735840540,-540.6,0.00027534,2]
[315028872,1708735840550,-500.0,0.00027534,2]
[315028873,1708735840559,-500.0,0.00027534,2]
[315028874,1708735840572,-500.0,0.00027534,2]
[315028875,1708735840585,-603.72,0.00027534,2]
[315028876,1708735840596,-500.0,0.00027534,2]
[315028877,1708735840608,-752.38,0.00027534,2]
[315028878,1708735840620,-500.0,0.00027534,2]
[315028880,1708735840631,-500.0,0.00027534,2]
[315028882,1708735840643,-505.45,0.00027534,2]
[315028883,1708735840654,-500.0,0.00027534,2]
[315028884,1708735840664,-500.0,0.00027534,2]
[315028885,1708735840674,-722.7,0.00027534,2]
[315028886,1708735840683,-500.0,0.00027534,2]
[315028887,1708735840694,-500.0,0.00027534,2]
[315028888,1708735840706,-500.0,0.00027534,2]
[315028889,1708735840716,-500.0,0.00027534,2]
[315028890,1708735840727,-500.0,0.00027534,2]
[315028891,1708735840738,-500.0,0.00027534,2]
[315028892,1708735840751,-500.0,0.00027534,2]
[315028893,1708735840763,-500.0,0.00027534,2]
[315028894,1708735840774,-406.65,0.00027534,2]
[315028895,1708735840786,-500.0,0.00027534,2]
[315028896,1708735840796,-500.0,0.00027534,2]
[315028897,1708735840807,-500.0,0.00027534,2]
[315028898,1708735840817,-500.0,0.00027534,2]
[315028899,1708735840828,-685.34,0.00027534,2]
[315028900,1708735840839,-609.13,0.00027534,2]
[315028901,1708735840849,-1206.49,0.00027534,2]
[315028902,1708735840859,-500.0,0.00027534,2]
[315028903,1708735840869,-500.0,0.00027534,2]
[315028904,1708735840880,-676.53,0.00027534,2]
[315028905,1708735840891,-367.36,0.00027534,2]
[315028906,1708735840904,-775.18,0.00027534,2]
[315028907,1708735840918,-500.0,0.00027534,2]
[315028908,1708735840928,-500.0,0.00027534,2]
[315028909,1708735840939,-557.15204429,0.00027534,2]
[315028910,1708735840951,-647.48,0.00027534,2]
[315028911,1708735840961,-1845.04,0.00027534,2]
[315028912,1708735840972,-500.0,0.00027534,2]
[315028913,1708735840982,-500.0,0.00027534,2]
[315028914,1708735840996,-500.0,0.00027534,2]
[315028915,1708735841007,-517.06,0.00027534,2]
[315028916,1708735841018,-3619.07,0.00027534,2]
[315028917,1708735841028,-500.0,0.00027534,2]
[315028918,1708735841037,-500.0,0.00027534,2]
[315028919,1708735841047,-977.25,0.00027534,2]
[315028920,1708735841056,-500.0,0.00027534,2]
[315028921,1708735841066,-500.0,0.00027534,2]
[315028922,1708735841078,-500.0,0.00027534,2]
[315028923,1708735841088,-500.0,0.00027534,2]
[315028924,1708735841099,-500.0,0.00027534,2]
[315028925,1708735841109,-500.0,0.00027534,2]
[315028926,1708735841120,-353.37264688,0.00027534,2]
[315028927,1708735841131,-500.0,0.00027534,2]
[315028928,1708735841143,-500.0,0.00027534,2]
[315028929,1708735841154,-500.0,0.00027534,2]
[315028930,1708735841164,-500.0,0.00027534,2]
[315028931,1708735841175,-500.0,0.00027534,2]
[315028932,1708735841186,-2572.28,0.00027534,2]
[315028933,1708735841196,-1266.65,0.00027534,2]
[315028934,1708735841206,-500.0,0.00027534,2]
[315028935,1708735841217,-500.0,0.00027534,2]
[315028936,1708735841227,-500.0,0.00027534,2]
[315028937,1708735841239,-1827.8,0.00027534,2]
[315028938,1708735841249,-2494.13,0.00027534,2]
[315028939,1708735841260,-500.0,0.00027534,2]
[315028940,1708735841272,-500.0,0.00027534,2]
[315028941,1708735841283,-500.0,0.00027534,2]
[315028942,1708735841295,-390.5,0.00027534,2]
[315028943,1708735841306,-500.0,0.00027534,2]
[315028944,1708735841318,-500.0,0.00027534,2]
[315028945,1708735841329,-500.0,0.00027534,2]
[315028946,1708735841341,-500.0,0.00027534,2]
[315028947,1708735841352,-500.0,0.00027534,2]
[315028948,1708735841365,-500.0,0.00027534,2]
[315028949,1708735841377,-500.0,0.00027534,2]
[315028950,1708735841388,-568.65,0.00027534,2]
[315028951,1708735841398,-844.77,0.00027556,2]
[315028952,1708735841408,-219.66,0.00027564,2]
[315028953,1708735841419,-1193.18,0.0002763,2]
[315028954,1708735841429,-500.0,0.00027671,2]
[315028955,1708735841440,-500.0,0.00027671,2]
[315028956,1708735841450,-263.58686288,0.00027671,2]
[315028957,1708735841462,-500.0,0.00027671,2]
[315028958,1708735841473,-500.0,0.00027671,2]
[315028959,1708735841485,-500.0,0.00027671,2]
[315028960,1708735841497,-557.88250406,0.00027671,2]
[315028961,1708735841508,-645.8,0.00027671,2]
[315028962,1708735841519,-500.0,0.00027671,2]
[315028963,1708735841529,-447.29,0.00027671,2]
[315028964,1708735841540,-500.0,0.00027671,2]
[315028965,1708735841551,-500.0,0.00027671,2]
[315028966,1708735841562,-500.0,0.00027671,2]
[315028967,1708735841572,-222.25,0.00027671,2]
[315028968,1708735841581,-500.0,0.00027671,2]
[315028969,1708735841592,-500.0,0.00027671,2]
[315028970,1708735841601,-500.0,0.00027671,2]
[315028971,1708735841611,-538.52,0.00027671,2]
[315028972,1708735841620,-500.0,0.00027671,2]
[315028973,1708735841631,-500.0,0.00027671,2]
[315028974,1708735841641,-540.6,0.00027671,2]
[315028975,1708735841651,-500.0,0.00027671,2]
[315028976,1708735841662,-500.0,0.00027671,2]
[315028977,1708735841672,-500.0,0.00027671,2]
[315028978,1708735841682,-603.72,0.00027671,2]
[315028979,1708735841692,-500.0,0.00027671,2]
[315028980,1708735841703,-752.38,0.00027671,2]
[315028981,1708735841713,-500.0,0.00027671,2]
[315028982,1708735841724,-500.0,0.00027671,2]
[315028983,1708735841734,-505.45,0.00027671,2]
[315028984,1708735841746,-500.0,0.00027671,2]
[315028985,1708735841756,-500.0,0.00027671,2]
[315028986,1708735841767,-722.7,0.00027671,2]
[315028987,1708735841778,-500.0,0.00027671,2]
[315028988,1708735841788,-500.0,0.00027671,2]
[315028989,1708735841799,-500.0,0.00027671,2]
[315028990,1708735841809,-500.0,0.00027671,2]
[315028991,1708735841819,-500.0,0.00027671,2]
[315028992,1708735841829,-500.0,0.00027671,2]
[315028993,1708735841839,-500.0,0.00027671,2]
[315028994,1708735841849,-500.0,0.00027671,2]
[315028995,1708735841860,-500.0,0.00027671,2]
[315028996,1708735841872,-500.0,0.00027671,2]
[315028997,1708735841882,-500.0,0.00027671,2]
[315028998,1708735841892,-500.0,0.00027671,2]
[315028999,1708735841906,-685.34,0.00027671,2]
[315029000,1708735841916,-609.13,0.00027671,2]
[315029001,1708735841927,-1206.49,0.00027671,2]
[315029002,1708735841937,-500.0,0.00027671,2]
[315029003,1708735841949,-500.0,0.00027671,2]
[315029004,1708735841959,-676.53,0.00027671,2]
[315029005,1708735841970,-775.18,0.00027671,2]
[315029006,1708735841980,-500.0,0.00027671,2]
[315029007,1708735841990,-500.0,0.00027671,2]
[315029008,1708735842001,-647.48,0.00027671,2]
[315029009,1708735842011,-1845.04,0.00027671,2]
[315029010,1708735842021,-472.80317334,0.00027671,2]
[315029011,1708735842031,-500.0,0.00027671,2]
[315029012,1708735842041,-500.0,0.00027671,2]
[315029013,1708735842051,-3619.07,0.00027671,2]
[315029014,1708735842062,-500.0,0.00027671,2]
[315029015,1708735842072,-500.0,0.00027671,2]
[315029016,1708735842082,-977.25,0.00027671,2]
[315029017,1708735842092,-500.0,0.00027671,2]
[315029018,1708735842102,-500.0,0.00027671,2]
[315029019,1708735842112,-500.0,0.00027671,2]
[315029020,1708735842122,-500.0,0.00027671,2]
[315029021,1708735842133,-500.0,0.00027671,2]
[315029022,1708735842144,-500.0,0.00027671,2]
[315029023,1708735842153,-500.0,0.00027671,2]
[315029024,1708735842163,-500.0,0.00027671,2]
[315029025,1708735842173,-500.0,0.00027671,2]
[315029026,1708735842183,-500.0,0.00027671,2]
[315029027,1708735842194,-2572.28,0.00027671,2]
[315029028,1708735842204,-1266.65,0.00027671,2]
[315029029,1708735842215,-500.0,0.00027671,2]
[315029030,1708735842226,-500.0,0.00027671,2]
[315029031,1708735842236,-500.0,0.00027671,2]
[315029032,1708735842247,-1827.8,0.00027671,2]
[315029033,1708735842258,-2494.13,0.00027671,2]
[315029034,1708735842268,-500.0,0.00027671,2]
[315029035,1708735842278,-154.51,0.00027671,2]
[315029036,1708735842289,-500.0,0.00027671,2]
[315029037,1708735842299,-500.0,0.00027671,2]
[315029038,1708735842309,-500.0,0.00027671,2]
[315029039,1708735842319,-500.0,0.00027671,2]
[315029040,1708735842328,-500.0,0.00027671,2]
[315029041,1708735842339,-500.0,0.00027671,2]
[315029042,1708735842349,-561.66188145,0.00027671,2]
[315029043,1708735842359,-378.09412142,0.00027671,2]
[315029044,1708735842369,-219.66,0.00027707,2]
[315029045,1708735842379,-10653.693,0.00027708,2]
[315029046,1708735842389,-844.77,0.00027714,2]
[315029047,1708735842399,-500.0,0.00027808,2]
[315029048,1708735842409,-500.0,0.00027808,2]
[315029049,1708735842419,-500.0,0.00027808,2]
[315029050,1708735842429,-500.0,0.00027808,2]
[315029051,1708735842439,-250.5,0.00027808,2]
[315029052,1708735842450,-500.0,0.00027808,2]
[315029053,1708735842460,-500.0,0.00027808,2]
[315029054,1708735842470,-500.0,0.00027808,2]
[315029055,1708735842481,-500.0,0.00027808,2]
[315029056,1708735842491,-500.0,0.00027808,2]
[315029057,1708735842501,-500.0,0.00027808,2]
[315029058,1708735842512,-500.0,0.00027808,2]
[315029059,1708735842522,-538.52,0.00027808,2]
[315029060,1708735842532,-500.0,0.00027808,2]
[315029061,1708735842542,-500.0,0.00027808,2]
[315029062,1708735842551,-540.6,0.00027808,2]
[315029063,1708735842562,-500.0,0.00027808,2]
[315029064,1708735842572,-500.0,0.00027808,2]
[315029065,1708735842582,-500.0,0.00027808,2]
[315029066,1708735842591,-603.72,0.00027808,2]
[315029067,1708735842601,-500.0,0.00027808,2]
[315029068,1708735842611,-752.38,0.00027808,2]
[315029069,1708735842621,-500.0,0.00027808,2]
[315029070,1708735842630,-500.0,0.00027808,2]
[315029071,1708735842640,-505.45,0.00027808,2]
[315029072,1708735842650,-500.0,0.00027808,2]
[315029073,1708735842660,-500.0,0.00027808,2]
[315029074,1708735842671,-722.7,0.00027808,2]
[315029075,1708735842681,-500.0,0.00027808,2]
[315029076,1708735842691,-500.0,0.00027808,2]
[315029077,1708735842701,-500.0,0.00027808,2]
[315029078,1708735842712,-500.0,0.00027808,2]
[315029079,1708735842722,-500.0,0.00027808,2]
[315029080,1708735842732,-500.0,0.00027808,2]
[315029081,1708735842742,-500.0,0.00027808,2]
[315029082,1708735842753,-500.0,0.00027808,2]
[315029083,1708735842764,-500.0,0.00027808,2]
[315029084,1708735842775,-500.0,0.00027808,2]
[315029085,1708735842785,-500.0,0.00027808,2]
[315029086,1708735842795,-685.34,0.00027808,2]
[315029087,1708735842805,-609.13,0.00027808,2]
[315029088,1708735842815,-1206.49,0.00027808,2]
[315029089,1708735842826,-500.0,0.00027808,2]
[315029090,1708735842838,-500.0,0.00027808,2]
[315029091,1708735842849,-676.53,0.00027808,2]
[315029092,1708735842860,-775.18,0.00027808,2]
[315029093,1708735842870,-500.0,0.00027808,2]
[315029094,1708735842880,-500.0,0.00027808,2]
[315029095,1708735842890,-647.48,0.00027808,2]
[315029096,1708735842900,-1845.04,0.00027808,2]
[315029097,1708735842914,-500.0,0.00027808,2]
[315029098,1708735842924,-500.0,0.00027808,2]
[315029099,1708735842934,-3619.07,0.00027808,2]
[315029100,1708735842945,-500.0,0.00027808,2]
[315029101,1708735842955,-500.0,0.00027808,2]
[315029119,1708735843215,-977.25,0.00027808,2]
[315029121,1708735843225,-500.0,0.00027808,2]
[315029123,1708735843234,-317.54,0.00027808,2]
[315029125,1708735843243,-500.0,0.00027808,2]
[315029126,1708735843253,-500.0,0.00027808,2]
[315029127,1708735843262,-575.62,0.00027808,2]
[315029128,1708735843271,-500.0,0.00027808,2]
[315029129,1708735843280,-500.0,0.00027808,2]
[315029130,1708735843289,-258.2,0.00027808,2]
[315029131,1708735843298,-500.0,0.00027808,2]
[315029132,1708735843307,-2572.28,0.00027808,2]
[315029133,1708735843316,-1266.65,0.00027808,2]
[315029134,1708735843325,-500.0,0.00027808,2]
[315029135,1708735843334,-500.0,0.00027808,2]
[315029136,1708735843344,-500.0,0.00027808,2]
[315029137,1708735843354,-1827.8,0.00027808,2]
[315029138,1708735843363,-2494.13,0.00027808,2]
[315029139,1708735843372,-500.0,0.00027808,2]
[315029140,1708735843381,-500.0,0.00027808,2]
[315029141,1708735843390,-500.0,0.00027808,2]
[315029142,1708735843399,-500.0,0.00027808,2]
[315029143,1708735843409,-500.0,0.00027808,2]
[315029144,1708735843418,-500.0,0.00027808,2]
[315029145,1708735843428,-500.0,0.00027808,2]
[315029146,1708735843437,-219.66,0.0002785,2]
[315029147,1708735843446,-844.77,0.00027872,2]
[315029148,1708735843455,-1596.22,0.00027887,2]
[315029149,1708735843465,-500.0,0.00027945,2]
[315029150,1708735843474,-500.0,0.00027945,2]
[315029151,1708735843484,-500.0,0.00027945,2]
[315029152,1708735843493,-501.01039976,0.00027945,2]
[315029153,1708735843502,-500.0,0.00027945,2]
[315029154,1708735843511,-500.0,0.00027945,2]
[315029155,1708735843520,-500.0,0.00027945,2]
[315029156,1708735843529,-500.0,0.00027945,2]
[315029157,1708735843538,-309.6639794,0.00027945,2]
[315029158,1708735843547,-500.0,0.00027945,2]
[315029159,1708735843556,-500.0,0.00027945,2]
[315029161,1708735843566,-538.52,0.00027945,2]
[315029162,1708735843575,-500.0,0.00027945,2]
[315029163,1708735843584,-500.0,0.00027945,2]
[315029164,1708735843593,-540.6,0.00027945,2]
[315029165,1708735843602,-500.0,0.00027945,2]
[315029166,1708735843611,-500.0,0.00027945,2]
[315029167,1708735843620,-500.0,0.00027945,2]
[315029168,1708735843630,-603.72,0.00027945,2]
[315029169,1708735843641,-212.81,0.00027945,2]
[315029170,1708735843651,-752.38,0.00027945,2]
[315029171,1708735843663,-500.0,0.00027945,2]
[315029172,1708735843673,-500.0,0.00027945,2]
[315029173,1708735843682,-505.45,0.00027945,2]
[315029174,1708735843691,-500.0,0.00027945,2]
[315029175,1708735843700,-500.0,0.00027945,2]
[315029176,1708735843710,-722.7,0.00027945,2]
[315029177,1708735843719,-500.0,0.00027945,2]
[315029178,1708735843728,-500.0,0.00027945,2]
[315029179,1708735843737,-500.0,0.00027945,2]
[315029180,1708735843748,-500.0,0.00027945,2]
[315029181,1708735843757,-204.9519271,0.00027945,2]
[315029182,1708735843767,-500.0,0.00027945,2]
[315029183,1708735843777,-500.0,0.00027945,2]
[315029184,1708735843786,-500.0,0.00027945,2]
[315029185,1708735843796,-500.0,0.00027945,2]
[315029186,1708735843805,-500.0,0.00027945,2]
[315029187,1708735843816,-500.0,0.00027945,2]
[315029188,1708735843827,-685.34,0.00027945,2]
[315029189,1708735843837,-609.13,0.00027945,2]
[315029190,1708735843847,-1206.49,0.00027945,2]
[315029191,1708735843858,-500.0,0.00027945,2]
[315029192,1708735843869,-500.0,0.00027945,2]
[315029193,1708735843879,-676.53,0.00027945,2]
[315029194,1708735843887,-775.18,0.00027945,2]
[315029195,1708735843898,-500.0,0.00027945,2]
[315029196,1708735843910,-500.0,0.00027945,2]
[315029197,1708735843921,-647.48,0.00027945,2]
[315029198,1708735843931,-1845.04,0.00027945,2]
[315029199,1708735843941,-500.0,0.00027945,2]
[315029200,1708735843951,-215.14,0.00027945,2]
[315029201,1708735843960,-3619.07,0.00027945,2]
[315029202,1708735843969,-500.0,0.00027945,2]
[315029203,1708735843979,-977.25,0.00027945,2]
[315029204,1708735843990,-500.0,0.00027945,2]
[315029205,1708735844000,-500.0,0.00027945,2]
[315029206,1708735844009,-500.0,0.00027945,2]
[315029207,1708735844018,-500.0,0.00027945,2]
[315029208,1708735844028,-500.0,0.00027945,2]
[315029209,1708735844038,-500.0,0.00027945,2]
[315029210,1708735844047,-2572.28,0.00027945,2]
[315029211,1708735844057,-1266.65,0.00027945,2]
[315029212,1708735844066,-500.0,0.00027945,2]
[315029213,1708735844076,-500.0,0.00027945,2]
[315029214,1708735844086,-500.0,0.00027945,2]
[315029215,1708735844096,-1827.8,0.00027945,2]
[315029216,1708735844105,-2494.13,0.00027945,2]
[315029217,1708735844115,-500.0,0.00027945,2]
[315029218,1708735844123,-500.0,0.00027945,2]
[315029219,1708735844133,-500.0,0.00027945,2]
[315029220,1708735844142,-500.0,0.00027945,2]
[315029221,1708735844151,-500.0,0.00027945,2]
[315029222,1708735844160,-500.0,0.00027945,2]
[315029223,1708735844169,-500.0,0.00027945,2]
[315029224,1708735844179,-219.66,0.00027992,2]
[315029225,1708735844188,-673.83415694,0.00028,2]
[315029226,1708735844197,-844.77,0.0002803,2]
[315029227,1708735844206,-177.74,0.00028041,2]
[315029228,1708735844216,-500.0,0.00028082,2]
[315029229,1708735844225,-500.0,0.00028082,2]
[315029230,1708735844234,-237.84,0.00028082,2]
[315029231,1708735844243,-397.32,0.00028082,2]
[315029232,1708735844252,-500.0,0.00028082,2]
[315029233,1708735844262,-500.0,0.00028082,2]
[315029234,1708735844270,-500.0,0.00028082,2]
[315029235,1708735844280,-308.35481818,0.00028082,2]
[315029236,1708735844289,-415.01,0.00028082,2]
[315029237,1708735844298,-538.52,0.00028082,2]
[315029238,1708735844308,-500.0,0.00028082,2]
[315029239,1708735844317,-500.0,0.00028082,2]
[315029240,1708735844327,-540.6,0.00028082,2]
[315029241,1708735844336,-500.0,0.00028082,2]
[315029242,1708735844345,-500.0,0.00028082,2]
[315029243,1708735844354,-500.0,0.00028082,2]
[315029244,1708735844363,-603.72,0.00028082,2]
[315029245,1708735844372,-752.38,0.00028082,2]
[315029246,1708735844381,-500.0,0.00028082,2]
[315029247,1708735844390,-500.0,0.00028082,2]
[315029248,1708735844400,-505.45,0.00028082,2]
[315029249,1708735844409,-500.0,0.00028082,2]
[315029250,1708735844418,-500.0,0.00028082,2]
[315029251,1708735844427,-722.7,0.00028082,2]
[315029252,1708735844437,-500.0,0.00028082,2]
[315029253,1708735844446,-500.0,0.00028082,2]
[315029254,1708735844455,-500.0,0.00028082,2]
[315029255,1708735844465,-500.0,0.00028082,2]
[315029256,1708735844474,-500.0,0.00028082,2]
[315029257,1708735844484,-500.0,0.00028082,2]
[315029258,1708735844494,-500.0,0.00028082,2]
[315029259,1708735844503,-500.0,0.00028082,2]
[315029260,1708735844513,-500.0,0.00028082,2]
[315029261,1708735844522,-500.0,0.00028082,2]
[315029262,1708735844531,-685.34,0.00028082,2]
[315029263,1708735844540,-609.13,0.00028082,2]
[315029264,1708735844550,-1206.49,0.00028082,2]
[315029265,1708735844558,-500.0,0.00028082,2]
[315029266,1708735844567,-500.0,0.00028082,2]
[315029267,1708735844577,-676.53,0.00028082,2]
[315029268,1708735844586,-775.18,0.00028082,2]
[315029269,1708735844596,-500.0,0.00028082,2]
[315029270,1708735844605,-500.0,0.00028082,2]
[315029271,1708735844615,-647.48,0.00028082,2]
[315029272,1708735844624,-1845.04,0.00028082,2]
[315029273,1708735844633,-500.0,0.00028082,2]
[315029274,1708735844642,-3619.07,0.00028082,2]
[315029275,1708735844652,-500.0,0.00028082,2]
[315029276,1708735844661,-977.25,0.00028082,2]
[315029277,1708735844670,-500.0,0.00028082,2]
[315029278,1708735844679,-500.0,0.00028082,2]
[315029279,1708735844688,-500.0,0.00028082,2]
[315029280,1708735844697,-500.0,0.00028082,2]
[315029281,1708735844707,-500.0,0.00028082,2]
[315029282,1708735844715,-2572.28,0.00028082,2]
[315029283,1708735844725,-1266.65,0.00028082,2]
[315029284,1708735844734,-500.0,0.00028082,2]
[315029285,1708735844746,-500.0,0.00028082,2]
[315029286,1708735844756,-500.0,0.00028082,2]
[315029287,1708735844765,-1827.8,0.00028082,2]
[315029288,1708735844775,-2494.13,0.00028082,2]
[315029289,1708735844783,-268.92006201,0.00028082,2]
[315029290,1708735844793,-500.0,0.00028082,2]
[315029291,1708735844802,-500.0,0.00028082,2]
[315029292,1708735844812,-500.0,0.00028082,2]
[315029293,1708735844823,-500.0,0.00028082,2]
[315029294,1708735844832,-500.0,0.00028082,2]
[315029295,1708735844841,-500.0,0.00028082,2]
[315029296,1708735844850,-266.63,0.000281,2]
[315029297,1708735844860,-219.66,0.00028135,2]
[315029298,1708735844869,-844.77,0.00028189,2]
[315029299,1708735844878,-206.0,0.00028207,10]
[315029300,1708735844887,-500.0,0.00028219,2]
[315029301,1708735844897,-500.0,0.00028219,2]
[315029302,1708735844907,-500.0,0.00028219,2]
[315029303,1708735844917,-500.0,0.00028219,2]
[315029304,1708735844926,-538.52,0.00028219,2]
[315029305,1708735844935,-500.0,0.00028219,2]
[315029306,1708735844945,-500.0,0.00028219,2]
[315029307,1708735844955,-540.6,0.00028219,2]
[315029308,1708735844965,-500.0,0.00028219,2]
[315029309,1708735844975,-500.0,0.00028219,2]
[315029310,1708735844985,-603.72,0.00028219,2]
[315029311,1708735844997,-752.38,0.00028219,2]
[315029312,1708735845006,-500.0,0.00028219,2]
[315029313,1708735845015,-500.0,0.00028219,2]
[315029314,1708735845024,-505.45,0.00028219,2]
[315029315,1708735845034,-500.0,0.00028219,2]
[315029316,1708735845044,-500.0,0.00028219,2]
[315029317,1708735845053,-722.7,0.00028219,2]
[315029318,1708735845063,-500.0,0.00028219,2]
[315029319,1708735845072,-500.0,0.00028219,2]
[315029320,1708735845082,-500.0,0.00028219,2]
[315029321,1708735845091,-500.0,0.00028219,2]
[315029322,1708735845101,-500.0,0.00028219,2]
[315029323,1708735845110,-500.0,0.00028219,2]
[315029324,1708735845120,-500.0,0.00028219,2]
[315029325,1708735845129,-500.0,0.00028219,2]
[315029326,1708735845139,-500.0,0.00028219,2]
[315029327,1708735845149,-500.0,0.00028219,2]
[315029328,1708735845158,-685.34,0.00028219,2]
[315029329,1708735845167,-609.13,0.00028219,2]
[315029330,1708735845176,-1206.49,0.00028219,2]
[315029331,1708735845185,-500.0,0.00028219,2]
[315029332,1708735845194,-500.0,0.00028219,2]
[315029333,1708735845203,-676.53,0.00028219,2]
[315029334,1708735845213,-775.18,0.00028219,2]
[315029335,1708735845222,-267.29098394,0.00028219,2]
[315029336,1708735845232,-500.0,0.00028219,2]
[315029337,1708735845241,-647.48,0.00028219,2]
[315029338,1708735845252,-1845.04,0.00028219,2]
[315029339,1708735845261,-645.62444375,0.00028219,2]
[315029340,1708735845270,-3619.07,0.00028219,2]
[315029341,1708735845279,-500.0,0.00028219,2]
[315029342,1708735845289,-977.25,0.00028219,2]
[315029343,1708735845298,-500.0,0.00028219,2]
[315029344,1708735845307,-500.0,0.00028219,2]
[315029345,1708735845317,-500.0,0.00028219,2]
[315029346,1708735845326,-500.0,0.00028219,2]
[315029347,1708735845336,-500.0,0.00028219,2]
[315029348,1708735845345,-2572.28,0.00028219,2]
[315029349,1708735845355,-1266.65,0.00028219,2]
[315029350,1708735845365,-500.0,0.00028219,2]
[315029351,1708735845374,-500.0,0.00028219,2]
[315029352,1708735845383,-500.0,0.00028219,2]
[315029353,1708735845393,-1827.8,0.00028219,2]
[315029354,1708735845403,-2494.13,0.00028219,2]
[315029355,1708735845412,-500.0,0.00028219,2]
[315029356,1708735845421,-500.0,0.00028219,2]
[315029357,1708735845431,-500.0,0.00028219,2]
[315029358,1708735845441,-500.0,0.00028219,2]
[315029359,1708735845450,-500.0,0.00028219,2]
[315029360,1708735845459,-1411.71084982,0.00028256,2]
[315029361,1708735845470,-219.66,0.00028278,2]
[315029362,1708735845479,-268.0,0.00028341,2]
[315029363,1708735845488,-844.77,0.00028347,2]
[315029364,1708735845498,-500.0,0.00028356,2]
[315029365,1708735845507,-500.0,0.00028356,2]
[315029366,1708735845516,-500.0,0.00028356,2]
[315029367,1708735845525,-500.0,0.00028356,2]